Cogmind - Beta 16 @@@ ROGUE MODE // 2025.10.26 @ 19:33:11 Player: aRandomVoice Result: Destroyed by D-53 Grenadier with Mini Grenade Launcher Performance ------------- Evolutions (1) 500 Regions Visited (3) 600 Robots Destroyed (15) 75 Value Destroyed (404) 404 Prototype IDs (0) 0 Alien Tech Used (0) 0 Bonus (0) 0 TOTAL SCORE: 1579 Bonus ------- None Cogmind --------- Core Integrity 0/400 Matter 291/300 Energy 100/100 System Corruption 0% Temperature Cool (0) Movement Walking (120) Location -9/Mines Parts ------- > --- POWER (1) -------- (None) > --- PROPULSION (4) --- Aluminum Leg > --- UTILITY (2) ------ Visual Processing Unit Improved Targeting Computer > --- WEAPON (2) ------- (None) > --- INVENTORY (5) ---- Ion Engine Heat Sink ECM Suite Grenade Launcher Peak State ------------ > --- POWER ------------ Improved Ion Engine > --- PROPULSION ------- Aluminum Leg Aluminum Leg Aluminum Leg Flight Unit > --- UTILITY ---------- Visual Processing Unit Improved Targeting Computer > --- WEAPON ----------- Small Laser Heavy Assault Rifle > --- INVENTORY -------- Ion Engine Heat Sink ECM Suite Grenade Launcher [Rating: 13] Favorites ----------- Power Improved Ion Engine Engine Improved Ion Engine Propulsion Aluminum Leg Leg Aluminum Leg Flight Unit Flight Unit Utility Improved Targeting Computer Device Improved Terrain Scanner Processor Improved Targeting Computer Protection Core Shielding Weapon Light Assault Rifle Energy Gun Small Laser Ballistic Gun Light Assault Rifle Launcher Grenade Launcher Build | -11 -10 -9 -9 ------- Run | Yrd Mat Mat Min Slots Evolved 2 | . . 2 . Power . | . . . . Propulsion 2 | . . 2 . Utility . | . . . . Weapon . | . . . . Parts Attached 24 | 6 3 13 2 Power 3 | 1 . 2 . Engine 3 | 1 . 2 . Core . | . . . . Reactor . | . . . . Propulsion 9 | 2 2 4 1 Treads . | . . . . Leg 5 | 2 . 2 1 Wheel . | . . . . Hover . | . . . . Flight 4 | . 2 2 . Utility 4 | 1 1 2 . Device 1 | 1 . . . Storage . | . . . . Processor 2 | . . 2 . Hackware . | . . . . Protection 1 | . 1 . . Artifact . | . . . . Weapon 8 | 2 . 5 1 Energy Gun 4 | . . 3 1 Energy Cannon . | . . . . Ballistic Gun 3 | 2 . 1 . Ballistic Cannon . | . . . . Launcher 1 | . . 1 . Special Weapon . | . . . . Impact Weapon . | . . . . Slashing Weapon . | . . . . Piercing Weapon . | . . . . Special Melee Weapon . | . . . . Unidentified Prototypes . | . . . . Parts Lost 11 | . . 4 7 Power 1 | . . . 1 Propulsion 6 | . . 3 3 Utility . | . . . . Weapon 4 | . . 1 3 Highest Loss Streak 6 | . . 2 6 To Critical Strikes . | . . . . Average Backups 1 | . 1 1 3 Power . | . . . . Propulsion . | . . . . Utility . | . . . 2 Weapon . | . . 1 1 Tool/Special . | . . . . Unused Backups 3 | . . . 3 Power 1 | . . . 1 Propulsion . | . . . . Utility 2 | . . . 2 Weapon . | . . . . Tool/Special . | . . . . Average Slot Usage (%) 87 | . 87 83 96 Engine 11 | . 14 11 11 Leg 16 | . 16 9 30 Flight 16 | . 11 22 10 Device 3 | . 14 1 . Processor 12 | . . 12 22 Protection 4 | . 2 8 . Energy Gun 8 | . . 8 16 Ballistic Gun 13 | . 28 10 5 Peak Build Rating 13 | 8 9 12 13 Average Rating 9 | 4 8 10 12 On Entrance 7 | . 8 9 12 Avg Prop Armor Cover (%) 2 | . . 3 2 Naked Turns . | . . . . Heaviest Build 13 | 6 7 13 11 Greatest Support 30 | 20 20 20 30 Greatest Overweight (x) 2 | . . 2 1 Average Overweight (x) . | . . . . Largest Inventory Capacity 5 | 5 5 5 5 Average Capacity 5 | 5 5 5 5 Most Carried 5 | 5 4 3 5 Average Carried 2 | . 1 1 4 Final Capacity 5 | 5 5 5 5 Final Carried 4 | . 3 3 4 Class Distribution -------------------- 44% | Scavenger-Mutant 43% | Mutant 12% | Scavenger-Sprinter Dominant Class ---------------- Mutant | -10/Materials Scavenger-Mutant | -9/Materials Scavenger-Mutant | -9/Mines Resources | -11 -10 -9 -9 ----------- Run | Yrd Mat Mat Min Matter Collected 623 | 138 15 283 187 Remotely . | . . . . Salvage Created 528 | 28 32 382 86 Parts 40 | 6 6 24 4 Haulers Intercepted 1 | . . 1 . Recyclers Shooed . | . . . . Parts Field Recycled . | . . . . Retrieved Matter . | . . . . Parts Self-Destructed . | . . . . Prevented . | . . . . Parts Restored . | . . . . Kills | -11 -10 -9 -9 ------- Run | Yrd Mat Mat Min Combat Hostiles Destroyed 11 | . 2 7 2 Guns 10 | . 2 6 2 Classes Destroyed 6 | 1 1 4 . Tunneler 2 | 2 . . . Hauler 1 | . . 1 . Watcher 1 | . . 1 . Swarmer 2 | . 2 . . Grunt 6 | . . 4 2 Sentry 3 | . . 3 . Best Kill Streak 2 | 2 2 2 1 Combat Bots Only 2 | . 2 2 1 Max Kills in Single Turn 1 | 1 1 1 1 Gunslinging . | . . . . Exploded . | . . . . Melee . | . . . . Uniques/NPCs Destroyed . | . . . . Combat | -11 -10 -9 -9 -------- Run | Yrd Mat Mat Min Hostile Shots Fired 119 | . 24 63 32 Missed 36 | . 8 22 6 Hits 83 | . 16 41 26 Projectile 83 | . 16 41 26 AOE 14 | . . . 14 Critical Strikes 2 | . . 2 . Damage Taken 1414 | . 150 539 725 Core 454 | . 41 125 288 Absorbed by Shields . | . . . . Redirected to Shielding 26 | . . 26 . Core Remaining (%) 91 | 100 83 . . Volleys Fired 97 | 9 13 65 10 Largest 2 | 2 2 2 2 Hottest 105 | 40 40 100 105 Shots Fired 157 | 18 26 94 19 Gun 154 | 18 26 91 19 Cannon . | . . . . Launcher 3 | . . 3 . Special . | . . . . Kinetic 113 | 18 26 62 7 Thermal 41 | . . 29 12 Explosive 3 | . . 3 . Electromagnetic . | . . . . Robot Hit Streak 7 | 3 3 7 3 Robot Miss Streak 4 | 4 4 4 1 Penetration Max . | . . . . Secondary Targets 1 | . . 1 . Max Gunslinging Chain 1 | . . 1 . Shots Hit Robots 91 | 8 8 62 13 Core Hits 30 | 4 4 18 4 Critical Kills 1 | . . 1 . Critical Parts Destroyed 2 | . . 2 . Critical Strikes 6 | . . 6 . Burn 3 | . . 3 . Destroy 3 | . . 3 . Melee Attacks . | . . . . Impact . | . . . . Slashing . | . . . . Piercing . | . . . . Sneak Attacks . | . . . . Combat Hostiles . | . . . . Follow-up Attacks . | . . . . Damage Inflicted 1156 | 70 62 847 177 Guns 1049 | 70 62 740 177 Cannons . | . . . . Explosions 107 | . . 107 . Melee . | . . . . Ramming . | . . . . Kinetic 719 | 70 62 482 105 Thermal 330 | . . 258 72 Explosive 107 | . . 107 . Electromagnetic . | . . . . Impact . | . . . . Slashing . | . . . . Piercing . | . . . . Highest Corruption . | . . . . Average Corruption . | . . . . Corruption Purged . | . . . . Corruption Blocked . | . . . . Overload Shots . | . . . . Overflow Damage . | . . . . Projectiles . | . . . . Explosions . | . . . . Melee . | . . . . Knockbacks . | . . . . Impact . | . . . . Kinetic . | . . . . Secondary . | . . . . Self-Inflicted Damage . | . . . . Shots . | . . . . Rammed . | . . . . Targets Rammed 1 | . . 1 . Kicked 1 | . . 1 . Crushed . | . . . . Highest Temperature 411 | . 6 411 42 Average Temperature 136 | . 4 183 17 Received Heat Transfer 309 | . . 213 96 Effects 4 | . . 4 . Shutdowns 3 | . . 3 . Energy Bleed 1 | . . 1 . Siege Activations . | . . . . Martial Activations . | . . . . Shielding Activations . | . . . . Robots Disrupted . | . . . . Combat Hostiles . | . . . . Robots Corrupted . | . . . . Combat Hostiles . | . . . . Parts Fried . | . . . . Impact Corruptions . | . . . . Robots Melted 1 | . . 1 . Combat Hostiles 1 | . . 1 . Parts Melted 2 | . . 2 . Heat Transferred 1125 | . . 951 174 Parts Sabotaged . | . . . . Parts Stolen . | . . . . Parts Stripped . | . . . . Power Chain Reactions . | . . . . Alert | -11 -10 -9 -9 ------- Run | Yrd Mat Mat Min Maximum Alert Level . | . . . . Low Security (%) 100 | 100 100 100 100 Level 1 . | . . . . Level 2 . | . . . . Level 3 . | . . . . Level 4 . | . . . . Level 5 . | . . . . High Security . | . . . . Max Security . | . . . . Peak Influence 63 | 5 49 63 20 Initial 7 | . 3 7 . Average 16 | 1 18 24 4 Influence Increases 336 | 10 76 210 40 Destroy 0b10 Robot/C 220 | . 40 140 40 Destroy 0b10 Robot/NC 20 | 10 . 10 . Destroy Leader 54 | . 10 44 . Successful Hack 11 | . 11 . . Destroy Structure 16 | . . 16 . Partial Spotted 15 | . 15 . . Influence Decreases 336 | 5 62 227 42 Entered New Map 16 | . 2 12 2 Time Decay 280 | 5 60 175 40 Lost Part 40 | . . 40 . Squads Dispatched . | . . . . Investigation . | . . . . Extermination . | . . . . Reinforcement . | . . . . Assault . | . . . . Garrison . | . . . . Intercept . | . . . . Searches Triggered . | . . . . Construction Impeded . | . . . . Haulers Reinforced . | . . . . Active Scanning Responses . | . . . . Cargo Convoy Interrupts . | . . . . Stealth | -11 -10 -9 -9 --------- Run | Yrd Mat Mat Min Distress Signals 6 | . 1 5 . Communications Jammed . | . . . . Distress Signals . | . . . . Times Spotted 21 | . 5 8 8 Peak Tracking Total 4 | . 4 3 3 Tactical Retreats . | . . . . Traps | -11 -10 -9 -9 ------- Run | Yrd Mat Mat Min Traps Triggered 1 | . 1 . . Indirectly . | . . . . Trap Hack Attempts . | . . . . Triggered . | . . . . Disarmed . | . . . . Reprogrammed . | . . . . Reused . | . . . . Traps Extracted . | . . . . Installed . | . . . . Triggered . | . . . . Machines | -11 -10 -9 -9 ---------- Run | Yrd Mat Mat Min Machines Disabled . | . . . . Max in Single Turn . | . . . . Machines Repaired . | . . . . Machines Dismantled . | . . . . Machines Sabotaged . | . . . . Overloaded Fab Kills . | . . . . Hacking | -11 -10 -9 -9 --------- Run | Yrd Mat Mat Min Machines Accessed 4 | . 3 1 . Terminals 3 | . 2 1 . Fabricators . | . . . . Repair Stations . | . . . . Recycling Units 1 | . 1 . . Scanalyzers . | . . . . Garrison Access . | . . . . Total Hacks 9 | . 7 2 . Successful 6 | . 5 1 . Failed 3 | . 2 1 . Catastrophic . | . . . . Database Lockouts . | . . . . Manual . | . . . . Terminals 8 | . 6 2 . Fabricators . | . . . . Repair Stations . | . . . . Recycling Units 1 | . 1 . . Scanalyzers . | . . . . Garrison Access . | . . . . Terminal Hacks 5 | . 4 1 . Alert Level 1 | . 1 . . Locate Traps 1 | . 1 . . Recall Investigation 1 | . 1 . . Zone Layout 2 | . 1 1 . Fabricator Hacks . | . . . . Repair Station Hacks . | . . . . Recycling Unit Hacks 1 | . 1 . . Report Inventory 1 | . 1 . . Scanalyzer . | . . . . Garrison Access Hacks . | . . . . Unauthorized Hacks . | . . . . Terminals . | . . . . Fabricators . | . . . . Repair Stations . | . . . . Recycling Units . | . . . . Scanalyzers . | . . . . Garrison Access . | . . . . Data Cores Recovered . | . . . . Used . | . . . . Hacking Detections 3 | . 2 1 . Full Trace Events . | . . . . Feedback Events . | . . . . Feedback Blocked . | . . . . Robot Schematics Acquired . | . . . . Robots Built . | . . . . Authchips . | . . . . Time . | . . . . Total Robot Build Rating . | . . . . Part Schematics Acquired . | . . . . Parts Built . | . . . . Authchips . | . . . . Time . | . . . . Total Part Build Rating . | . . . . Part Studies Acquired . | . . . . Parts Repaired . | . . . . Time . | . . . . Parts Recycled . | . . . . Recycled Matter . | . . . . Retrieved Matter . | . . . . Retrieved Components . | . . . . Parts Scanalyzed . | . . . . Part Schematics Acquired . | . . . . Parts Damaged . | . . . . Bothacking | -11 -10 -9 -9 ------------ Run | Yrd Mat Mat Min Used RIF Installer . | . . . . Robots Hacked . | . . . . Non-combat . | . . . . Combat . | . . . . Robot Hacks Applied . | . . . . Relay Couplers Released . | . . . . Fabnet Peak Effective % . | . . . . Robots Rewired . | . . . . Allies Hacked . | . . . . Hacks Repelled . | . . . . Allies | -11 -10 -9 -9 -------- Run | Yrd Mat Mat Min Total Allies . | . . . . Largest Group . | . . . . Highest-Rated Group . | . . . . Highest-Rated Ally . | . . . . Total Orders . | . . . . Ally Attacks . | . . . . Total Damage . | . . . . Kills . | . . . . Allies Corrupted . | . . . . Allies Melted . | . . . . Intel | -11 -10 -9 -9 ------- Run | Yrd Mat Mat Min Active Infowar (turns) 535 | 1 175 146 213 Optics 325 | . . 112 213 Terrain 210 | 1 175 34 . Robot Analysis Total . | . . . . Derelict Logs Recovered . | . . . . Drone Launches . | . . . . Drone Recoveries . | . . . . Exploration | -11 -10 -9 -9 ------------- Run | Yrd Mat Mat Min Turns Passed 865 | 74 175 403 213 Spaces Moved 652 | 39 229 236 148 Core 11 | 11 . . . Treads . | . . . . Legs 348 | 28 56 116 148 Wheels . | . . . . Hover . | . . . . Flight 293 | . 173 120 . Fastest Speed 31 | 50 37 31 120 Average Speed 85 | 100 57 88 120 Slowest Speed 200 | 120 120 200 190 Overloaded Moves . | . . . . Propulsion Burnouts . | . . . . Robots Hopped 2 | . 2 . . Potential Cave-ins . | . . . . Cave-ins Triggered . | . . . . Exploration Rate (%) 23 | 4 34 25 31 Regions Visited 3 Branch Regions 1 Pre-discovered Areas . | . . . . Known Exits Taken . | . . . . Unknown Exits Taken 3 | 1 1 1 . Scrap Searched . | . . . . Spaces Dug . | . . . . Terrain Destroyed 19 | . . 19 . Melee . | . . . . Projectile . | . . . . AOE 19 | . . 19 . Terrain Rammed . | . . . . Walls Destroyed . | . . . . Machines Disabled . | . . . . Actions | -11 -10 -9 -9 --------- Run | Yrd Mat Mat Min Total 814 | 59 250 342 163 Wait 6 | . . 6 . Move 645 | 38 224 235 148 Hop 2 | . 2 . . Pick Up 27 | 6 6 12 3 Fast Attach . | . . . . Attach 21 | 6 3 10 2 Detach . | . . . . Swap 6 | . . 6 . Drop 9 | . 2 7 . Fire 97 | 9 13 65 10 Melee . | . . . . Ram . | . . . . Kick 1 | . . 1 . Crush . | . . . . Escape Stasis . | . . . . Rewire . | . . . . Trap . | . . . . Miscellaneous . | . . . . Route ------- -11/Scrapyard -10/Materials (discovered 2 exits: *Mat / [*Min]) -9/Materials (discovered 2 exits: [Mat] / [*Min]) -9/Mines (discovered 1 exit: [*Exi]) History --------- Turn | Location | Event 2 | -11/Scrapyard | Met Revision 17 4 | -11/Scrapyard | Discovered new exit (range 16) 75 | -11/Scrapyard | Entered Materials 189 | -10/Materials | Discovered new exit (range 11) 206 | -10/Materials | Discovered new exit (range 13) 250 | -10/Materials | Entered another Materials area 250 | -9/Materials | Evolved 2 slots: Propulsion x2 408 | -9/Materials | Discovered new exit (range 15) 512 | -9/Materials | Discovered new exit (range 14) 611 | -9/Materials | Met 8R-AWN 653 | -9/Materials | Entered Mines 655 | -9/Mines | Followed 8R-AWN into the Mines 713 | -9/Mines | Discovered new exit (range 5) 782 | -9/Mines | Build established: Scavenger-Mutant 825 | -9/Mines | Assembled infested the area 830 | -9/Mines | Assisted by a Guerilla fighting off Assembled 853 | -9/Mines | Core integrity fell below 50% 861 | -9/Mines | Core integrity fell below 20% 866 | -9/Mines | Destroyed by D-53 Grenadier with Mini Grenade Launcher Last Messages --------------- [Achievement: There's More Where That Came From] 00762_ G-34 Mercenary destroyed. 00766_ Acquired 38 matter. 00767_ Acquired 41 matter. 00773_ R-06 Scavenger collects Sml. Laser. 00786_ K-01 Serf collects debris. 00825_ ALERT: Infestation in the mines, dispatching Demolisher response squad. 00825_ K-01 Serf collects debris. 00851_ C-45 Heavy ARC bursts open, deploying its payload. 00851_ D-53 Grenadier unfolds itself. 00854_ The unstable cave ceiling collapses. 00856_ Aluminum Leg destroyed. 00857_ Flight Unit destroyed. 00860_ Imp. Ion Engine destroyed. 00862_ Particle Gun destroyed. 00863_ The unstable cave ceiling collapses. 00864_ Sml. Laser destroyed. 00865_ The unstable cave ceiling collapses. Map ----- +----------------------------------------------------+ | ???# ??????? | | ???# ## ??????? | | ???# ##?????????????????? | | ???# ##??????????????????? | | ???## ########???????? ????????? | | ???## #??????????????? ????????? | | ???# #??????????????? #???????? | | ???# #???????????????# #???????? | | ???# ##???????????????# #???????? | | ???# #????????????????# #???????? | | ???# #????????????????# #???????? | | ???# ##??#####????????# #???????? | | ???## #### # ####?????# #???????? | | ????## # ##????# #???????? | | ?????# ###### #???????? | | ?????## #???????? | | ??????# ###?????? | | ??????# d ##????? | | ??????## # " ##???? | | ???????### d##%" ##??? | | ???????## #### ###? | | ???????# #??# ## ## | | ???????## ##??# ##### | | ???????# #??# #???## | | ???????### ##### * #????## " | | ????????# @ # #?????# " | | ????????# ## #### #?????# " | | ????????## ##??#??## #?????## | | ???????? ###???????## ##?????## | | ???????#######??????????# #??????# | | ???????????????????????## #??????# | | ???????????????????????# #??????# | | ???????????????????????# #????### | | ???????????????????????#### ###??# | | ??????????????????????????# ##?# | | ??????????????????????????### #?# | | ???????????????????????????## ##?# | | ???????????????????????????# #??# | | ???????????????????????????# ##??# *[ | | ??????????????????????????#< ????# % | | ??????????????????????????###????#### | | ????????????????????????????????????? | | ????????????????????????????????????? | | | | | | | | | | | | | | | +----------------------------------------------------+ Best States ------------- Heat Dissipation 28 Energy Generation 12 Energy Capacity 265 Matter Stores 276 Matter Capacity 300 Sight Range 18 Terrain Scan Range 16 Terrain Scan Density 10 Core Shielding 20 Evasion (%) 63 Targeting Accuracy 6 Item Schematics ----------------- None Robot Schematics ------------------ None Fabricated ------------ Nothing Repaired ---------- Nothing Studied --------- None Alien Tech Used ----------------- None Achievements -------------- DATA ERROR: Steam Global Achievement% Follow The Leader For Emergencies Only Organ Harvest Spot Them First There's More Where That Came From You Again Challenges ------------ None Game ------ Seed LongswordSlugAccelerator Manual? 0 Play Time 00:17:27 Cumulative 10.4 hours Start 2025.10.26 @ 19:17:27 End 2025.10.26 @ 19:33:11 Sessions 1 Manual Loads 0 Difficulty Rogue Special Mode None Game No. 27 Rogue 21 Adventurer 6 Explorer 0 Win Type - Total 0 Types 0/0/0/0/0/0/0/0/0/0 Lore% 3 Gallery% 15 Achievement% 9 Wizard Run 0 Options --------- Layout 1 ASCII 0 Keyboard 0 Movement Mouse Keybinds 0 Fullscreen 2 Font 24/Proggy Map View 50x35 Zoom Use 0% Tactical HUD 1 Map Filters NONE Filters NONE Steam 1 RUN: 544ea2ba-e4b8-419a-b4be-914e095c67e4